bitfinex/quotes_BTCUSD_20250330
["timestamp","ask_amount","ask_price","bid_price","bid_amount"]
[1743294213939,0.0011687,82889.0,82888.0,0.89841535]
[1743294227671,0.0011687,82889.0,82888.0,0.9129562]
[1743294227932,0.0011687,82889.0,82888.0,1.08244103]
[1743294229507,0.0011687,82889.0,82888.0,0.9621562]
[1743294234590,0.0011687,82889.0,82888.0,0.7784762]
[1743294234891,0.0011687,82889.0,82888.0,0.89829535]
[1743294244803,0.0011687,82889.0,82888.0,0.81529535]
[1743294251482,0.0011687,82889.0,82888.0,0.89519535]
[1743294251701,0.0011687,82889.0,82888.0,1.01548018]
[1743294252395,0.0011687,82889.0,82888.0,1.03002103]
[1743294252711,0.0011687,82889.0,82888.0,0.9097362]
[1743294252918,7e-07,82889.0,82888.0,0.9566362]
[1743294255541,0.0001692,82889.0,82888.0,0.9566362]
[1743294267929,0.0001692,82889.0,82888.0,0.76083535]
[1743294268110,0.0001692,82889.0,82888.0,0.81549535]
[1743294270371,0.01851138,82889.0,82888.0,0.81549535]
[1743294273118,0.01851138,82889.0,82888.0,0.68093535]
[1743294273511,0.0001692,82889.0,82888.0,0.68093535]
[1743294274824,0.01870774,82889.0,82888.0,0.68093535]
[1743294279222,0.0001692,82889.0,82888.0,0.68093535]
[1743294284757,0.01854691,82889.0,82888.0,0.68093535]
[1743294285126,0.0001692,82889.0,82888.0,0.68093535]
[1743294287524,0.0001692,82889.0,82888.0,0.42758235]
[1743294287853,0.0001692,82889.0,82888.0,0.43964635]
[1743294288066,0.01927813,82889.0,82888.0,0.43964635]
[1743294288508,0.01927813,82889.0,82888.0,0.42758235]
[1743294288857,0.38124213,82889.0,82888.0,0.42158235]
[1743294289158,0.38124213,82889.0,82888.0,0.42458235]
[1743294289559,0.50152696,82889.0,82888.0,0.0083374]
[1743294289714,0.57982696,82889.0,82888.0,0.0083374]
[1743294289919,0.61595576,82889.0,82888.0,0.0083374]
[1743294290142,0.61595506,82889.0,82888.0,0.0033374]
[1743294290328,0.45954143,82889.0,82888.0,0.0063374]
[1743294290666,0.49565352,82889.0,82888.0,0.0063374]
[1743294291214,0.49565352,82889.0,82888.0,0.0033374]
[1743294291490,0.45954143,82889.0,82888.0,0.0033374]
[1743294291863,1.22555174,82889.0,82888.0,0.0043374]
[1743294292279,1.34583657,82889.0,82888.0,0.0043374]
[1743294292428,1.34583657,82889.0,82888.0,0.0013374]
[1743294293262,1.34583657,82889.0,82888.0,0.0003374]
[1743294293743,1.34583657,82889.0,82888.0,0.0013374]
[1743294294285,1.30973526,82889.0,82888.0,0.0003374]
[1743294296056,1.44579574,82889.0,82888.0,0.0003374]
[1743294296368,1.42772724,82889.0,82888.0,0.0003374]
[1743294296576,1.02255783,82889.0,82888.0,0.0003374]
[1743294297615,0.99715583,82889.0,82888.0,0.0003374]
[1743294298411,1.29915583,82889.0,82888.0,0.0003374]
[1743294298611,1.30115583,82889.0,82888.0,0.0003374]
[1743294298991,1.3200799,82889.0,82888.0,0.0003374]
[1743294299519,1.33881694,82889.0,82888.0,0.0003374]
[1743294299701,1.43881694,82889.0,82888.0,0.0003374]
[1743294300599,1.44398544,82889.0,82888.0,0.0003374]
[1743294300978,1.45852629,82889.0,82888.0,0.0003374]
[1743294301385,1.45652629,82889.0,82888.0,0.0003374]
[1743294301811,1.45952629,82889.0,82888.0,0.0003374]
[1743294302188,2.03244629,82889.0,82888.0,0.0003374]
[1743294303503,2.03644629,82889.0,82888.0,0.0003374]
[1743294303906,2.0477297,82889.0,82888.0,0.0003374]
[1743294305654,2.01752222,82889.0,82888.0,0.0003374]
[1743294306526,2.0535333,82889.0,82888.0,0.0003374]
[1743294307013,2.05044262,82889.0,82888.0,0.0003374]
[1743294307149,1.53720062,82889.0,82888.0,0.0003374]
[1743294307350,1.50118954,82889.0,82888.0,0.0003374]
[1743294308751,1.52011322,82889.0,82888.0,0.0003374]
[1743294309060,1.33581322,82889.0,82888.0,0.0003374]
[1743294309682,1.45609805,82889.0,82888.0,0.0003374]
[1743294309890,1.43717437,82889.0,82888.0,0.0003374]
[1743294311291,1.31688954,82889.0,82888.0,0.0003374]
[1743294312969,1.33581295,82889.0,82888.0,0.0003374]
[1743294314323,1.37184286,82889.0,82888.0,0.0003374]
[1743294314847,1.03181295,82889.0,82888.0,0.0003374]
[1743294315351,1.06784835,82889.0,82888.0,0.0003374]
[1743294315707,1.04892494,82889.0,82888.0,0.0003374]
[1743294319010,1.06784834,82889.0,82888.0,0.0003374]
[1743294319995,1.04892494,82889.0,82888.0,0.0003374]
[1743294321486,1.16920977,82889.0,82888.0,0.0003374]
[1743294322461,0.94892494,82889.0,82888.0,0.0003374]
[1743294326274,0.37400494,82889.0,82888.0,0.0003374]
[1743294328242,0.36194094,82889.0,82888.0,0.0003374]
[1743294328446,0.36194094,82889.0,82888.0,0.0895014]
[1743294328622,0.06194094,82889.0,82888.0,0.0895014]
[1743294328849,0.06194094,82889.0,82888.0,0.1367014]
[1743294329058,0.02590554,82889.0,82888.0,0.1367014]
[1743294329463,0.02190554,82889.0,82888.0,0.1246374]
[1743294329668,0.57525554,82889.0,82888.0,0.0774374]
[1743294329878,0.70410033,82889.0,82888.0,0.0003374]
[1743294330435,0.61139691,82889.0,82888.0,0.0003374]
[1743294330616,0.61439691,82889.0,82888.0,0.0003374]
[1743294331419,0.61139691,82889.0,82888.0,0.0003374]
[1743294331846,0.61339691,82889.0,82888.0,0.0003374]
[1743294332282,0.61139691,82889.0,82888.0,0.0003374]
[1743294332776,0.61439691,82889.0,82888.0,0.0003374]
[1743294333937,0.63331961,82889.0,82888.0,0.0003374]
[1743294335881,0.61439691,82889.0,82888.0,0.0003374]
[1743294336084,0.73468174,82889.0,82888.0,0.0003374]
[1743294337324,1.35174574,82889.0,82888.0,0.0003374]
[1743294337911,1.23712374,82889.0,82888.0,0.0003374]
[1743294338753,1.25604652,82889.0,82888.0,0.0003374]
[1743294339899,1.23712374,82889.0,82888.0,0.0003374]
[1743294344238,1.14829253,82889.0,82888.0,0.0003374]
[1743294347444,1.12936974,82889.0,82888.0,0.0003374]
[1743294348497,0.553387,82877.0,82874.0,0.000337]
[1743294348673,0.553393,82875.0,82874.0,0.000337]
[1743294348923,0.58953437,82875.0,82874.0,0.000337]
[1743294349114,1.31742037,82875.0,82874.0,0.000337]
[1743294349527,1.21167437,82875.0,82874.0,0.000337]
[1743294349729,1.34088585,82875.0,82874.0,0.000337]
[1743294350148,1.34088585,82875.0,82874.0,0.001337]
[1743294350559,1.34088585,82875.0,82874.0,0.000337]
[1743294350853,1.36181027,82875.0,82874.0,0.001337]
[1743294351397,1.32870927,82875.0,82874.0,0.000337]
[1743294351961,1.33070927,82875.0,82874.0,0.000337]
[1743294354218,1.35510912,82875.0,82874.0,0.000337]
[1743294355626,1.3361847,82875.0,82874.0,0.000337]
[1743294355828,0.553423,82865.0,82864.0,0.076237]
[1743294356024,0.62337323,82865.0,82864.0,0.076237]
[1743294357084,0.62337323,82865.0,82864.0,0.00047845]
[1743294357263,0.62337323,82865.0,82864.0,0.00147845]
[1743294362457,0.553438,82860.0,82859.0,0.0761]
[1743294362693,0.553438,82860.0,82859.0,0.07624161]
[1743294362841,0.66759472,82860.0,82859.0,0.07624161]
[1743294363665,0.66759472,82860.0,82859.0,0.07824161]
[1743294363844,0.67891569,82860.0,82859.0,0.07824161]
[1743294364189,0.67891569,82860.0,82859.0,0.08024161]
[1743294364737,0.67891569,82860.0,82859.0,0.00414161]
[1743294365382,0.66759472,82860.0,82859.0,0.00414161]
[1743294366241,0.66759472,82860.0,82859.0,0.00014161]
[1743294368712,0.553438,82860.0,82859.0,0.07764161]
[1743294368889,0.57782179,82860.0,82859.0,0.07764161]
[1743294369447,0.57782179,82860.0,82859.0,0.07797881]
[1743294372777,0.59674861,82860.0,82859.0,0.07797881]
[1743294373375,0.59606702,82860.0,82859.0,0.07797881]
[1743294374974,0.5771402,82860.0,82859.0,0.07797881]
[1743294376611,0.69742503,82860.0,82859.0,0.07797881]
[1743294378809,0.71635199,82860.0,82859.0,0.07797881]
[1743294379928,0.69742503,82860.0,82859.0,0.07797881]
[1743294381249,0.73359414,82860.0,82859.0,0.07797881]
[1743294381422,0.61330931,82860.0,82859.0,0.07797881]
[1743294381931,0.61347791,82860.0,82859.0,0.07797881]
[1743294384138,0.63240467,82860.0,82859.0,0.07797881]
[1743294384662,0.61347791,82860.0,82859.0,0.07797881]
[1743294389537,0.63615832,82860.0,82859.0,0.00047881]
[1743294389696,0.75644315,82860.0,82859.0,0.00047881]
[1743294390313,0.38340191,82860.0,82859.0,0.08347881]
[1743294390486,0.38340191,82860.0,82859.0,0.14494681]
[1743294390887,0.39474293,82860.0,82859.0,0.14494681]
[1743294391117,0.35857382,82860.0,82859.0,0.10712004]
[1743294391933,0.33589341,82860.0,82859.0,0.10712004]
[1743294392872,0.31150962,82860.0,82859.0,0.10712004]
[1743294393066,0.3001686,82860.0,82859.0,0.10712004]
[1743294394715,0.3001686,82860.0,82859.0,0.10745724]
[1743294397571,0.32472326,82860.0,82859.0,0.10745724]
[1743294398911,0.3001686,82860.0,82859.0,0.10745724]
[1743294399332,0.0001686,82860.0,82859.0,0.10745724]
[1743294400442,0.0001686,82860.0,82859.0,0.10845724]
[1743294401544,0.0001686,82860.0,82859.0,0.10945724]
[1743294412554,0.02281195,82860.0,82859.0,0.10945724]
[1743294413477,0.0001686,82860.0,82859.0,0.10945724]
[1743294417387,0.0001686,82860.0,82859.0,0.0023372]
[1743294417918,0.0001686,82860.0,82859.0,0.0144052]
[1743294418638,0.02282467,82860.0,82859.0,0.0144052]
[1743294418956,0.02282467,82860.0,82859.0,0.0023372]
[1743294419321,0.1082242,82860.0,82859.0,0.0023372]
[1743294420470,0.4082242,82860.0,82859.0,0.0023372]
[1743294421586,0.4202922,82860.0,82859.0,0.0023372]
[1743294425930,0.45648826,82860.0,82859.0,0.0023372]
[1743294430231,0.45648826,82860.0,82859.0,0.0013372]
[1743294431191,0.45648826,82860.0,82859.0,0.0003372]
[1743294432370,0.40721672,82860.0,82859.0,0.0003372]
[1743294433368,0.44339103,82860.0,82859.0,0.0003372]
[1743294437569,0.89047603,82860.0,82859.0,0.0003372]
[1743294437792,0.90940477,82860.0,82859.0,0.0003372]
[1743294437993,0.89047603,82860.0,82859.0,0.0003372]
[1743294438575,0.89147603,82860.0,82859.0,0.0003372]
[1743294438779,0.553487,82844.0,82843.0,0.0003372]
[1743294439629,0.65832253,82844.0,82843.0,0.0003372]
[1743294440213,0.65832253,82844.0,82843.0,0.0023372]
[1743294440413,0.553487,82844.0,82843.0,0.0023372]
[1743294440835,0.56480944,82844.0,82843.0,0.0023372]
[1743294441616,0.58585386,82844.0,82843.0,0.0023372]
[1743294442401,0.58585386,82844.0,82843.0,0.0043372]
[1743294442602,0.69794708,82844.0,82843.0,0.0043372]
[1743294443952,0.7217001,82844.0,82843.0,0.0043372]
[1743294444536,0.7217001,82844.0,82843.0,0.0023372]
[1743294444933,0.7217001,82844.0,82843.0,0.0033372]
[1743294445342,0.7443235,82844.0,82843.0,0.0033372]
[1743294445767,0.7443235,82844.0,82843.0,0.0013372]
[1743294447727,0.76325485,82844.0,82843.0,0.0013372]
[1743294448244,0.3,82834.0,82832.0,0.0832]
[1743294448637,0.37814184,82834.0,82832.0,0.0832]
[1743294449443,0.37861321,82834.0,82832.0,0.0832]
[1743294449751,0.07014082,82833.0,82832.0,0.0862]
[1743294450511,0.07014082,82833.0,82832.0,0.0832]
[1743294450716,0.253515,82836.0,82832.0,0.0832]
[1743294450931,0.253515,82836.0,82832.0,0.08634126]
[1743294452122,0.25351,82837.0,82832.0,0.08334126]
[1743294452577,0.25351,82837.0,82832.0,0.08534126]
[1743294453114,0.25351,82837.0,82832.0,0.08550986]
[1743294453413,0.25351,82837.0,82832.0,0.08350986]
[1743294453776,0.241443,82835.0,82832.0,0.08550986]
[1743294454625,0.253515,82835.0,82832.0,0.08550986]
[1743294456075,0.3,82834.0,82832.0,0.08350986]
[1743294456387,0.3,82834.0,82832.0,0.08650986]
[1743294457101,0.3,82834.0,82832.0,0.08350986]
[1743294457315,0.3,82836.0,82832.0,0.09558186]
[1743294457523,0.3,82836.0,82835.0,0.334515]
[1743294457807,0.3,82836.0,82835.0,0.380515]
[1743294458337,0.01893151,82842.0,82839.0,0.012071]
[1743294458768,0.31893151,82842.0,82838.0,0.322434]
[1743294458988,0.3,82842.0,82838.0,0.322434]
[1743294459132,0.541432,82839.0,82838.0,0.081]
[1743294459358,0.553503,82839.0,82838.0,0.081]
[1743294460095,0.553503,82839.0,82833.0,0.41624495]
[1743294460096,0.553518,82834.0,82833.0,0.41624495]
[1743294462602,0.553518,82834.0,82833.0,0.41924495]
[1743294463421,0.56484349,82834.0,82833.0,0.41924495]
[1743294463588,0.56484349,82834.0,82833.0,0.38140974]
[1743294464001,0.58749854,82834.0,82833.0,0.38140974]
[1743294464201,0.58749854,82834.0,82833.0,0.003]
[1743294465161,0.312072,82833.0,82832.0,0.00030986]
[1743294465755,0.33472705,82833.0,82832.0,0.00030986]
[1743294466312,0.03472705,82833.0,82832.0,0.00030986]
[1743294466525,0.03472705,82833.0,82832.0,0.00330986]
[1743294467345,0.02265505,82833.0,82832.0,0.08430986]
[1743294468122,0.03472705,82833.0,82832.0,0.08430986]
[1743294468367,0.04606511,82833.0,82832.0,0.08430986]
[1743294473094,0.03399311,82833.0,82832.0,0.08430986]
[1743294473338,0.03399311,82833.0,82832.0,0.09638186]
[1743294474581,0.02265505,82833.0,82832.0,0.09638186]
[1743294474818,0.6349596,82833.0,82832.0,0.08430986]
[1743294474994,0.32265505,82833.0,82832.0,0.08430986]
[1743294476402,0.3,82832.0,82831.0,0.03999077]
[1743294476549,0.3,82832.0,82831.0,0.04003782]
[1743294477975,0.02265505,82832.0,82831.0,0.04003782]
[1743294478220,0.10875795,82832.0,82831.0,4.705e-05]
[1743294478663,0.10875795,82832.0,82831.0,0.00304705]
[1743294478906,0.0861029,82832.0,82831.0,0.00304705]
[1743294479834,0.3003374,82833.0,82831.0,0.00304705]
[1743294480800,0.3003374,82833.0,82831.0,4.705e-05]
[1743294481420,0.0003374,82833.0,82831.0,0.25357305]
[1743294482457,0.0003374,82833.0,82831.0,4.705e-05]
[1743294485606,0.0003374,82833.0,82832.0,0.253524]
[1743294487317,0.01167826,82833.0,82832.0,0.21568875]
[1743294488018,0.0003374,82833.0,82832.0,0.21768875]
[1743294490385,0.0003374,82833.0,82832.0,0.34298875]
[1743294491190,0.03161198,82833.0,82832.0,0.34298875]
[1743294491397,0.0003374,82833.0,82832.0,0.34298875]
[1743294492152,0.03436631,82833.0,82832.0,0.34298875]
[1743294493913,0.03436631,82833.0,82832.0,0.26528875]
[1743294498667,0.03436631,82833.0,82832.0,0.22745453]
[1743294501432,0.03436631,82833.0,82832.0,0.22762303]
[1743294501834,0.09318728,82833.0,82832.0,0.0497685]
[1743294502054,0.39318728,82833.0,82832.0,0.0021685]
[1743294502216,0.33436631,82833.0,82832.0,0.0021685]
[1743294504868,0.34643831,82833.0,82832.0,0.0021685]
[1743294505109,0.33436631,82833.0,82832.0,0.0021685]
[1743294505714,0.33436631,82833.0,82832.0,0.2436205]
[1743294510233,0.33436631,82833.0,82832.0,0.3325925]
[1743294510451,0.33436631,82833.0,82832.0,0.29475673]
[1743294511195,0.33436631,82833.0,82832.0,0.21785673]
[1743294512200,0.312072,82832.0,82831.0,0.00021575]
[1743294512800,0.3,82832.0,82831.0,0.00021575]
[1743294513011,0.32268594,82832.0,82831.0,0.00021575]
[1743294513625,0.32268594,82832.0,82831.0,0.00121575]
[1743294513806,0.33475794,82832.0,82831.0,0.00121575]
[1743294514010,0.43160928,82832.0,82831.0,0.00121575]
[1743294514823,0.4429539,82832.0,82831.0,0.00121575]
[1743294515759,0.43160928,82832.0,82831.0,0.00121575]
[1743294520274,0.33475794,82832.0,82831.0,0.00121575]
[1743294520473,0.37100286,82832.0,82831.0,0.00121575]
[1743294521625,0.37100286,82832.0,82831.0,0.00021575]
[1743294521832,0.3,82830.0,82824.0,0.253547]
[1743294522042,0.3,82828.0,82824.0,0.25401837]
[1743294522590,0.3,82828.0,82824.0,0.00047137]
[1743294522591,0.312073,82825.0,82824.0,0.00047137]
[1743294523575,0.33100853,82825.0,82824.0,0.00047137]
[1743294523774,0.36503672,82825.0,82824.0,0.00047137]
[1743294524446,0.40126946,82825.0,82824.0,0.00047137]
[1743294524791,0.47121969,82825.0,82824.0,0.00047137]
[1743294525148,0.47121969,82825.0,82824.0,0.00147137]
[1743294525353,0.43498695,82825.0,82824.0,0.00163987]
[1743294527067,0.46794836,82825.0,82824.0,0.00163987]
[1743294528773,0.44901283,82825.0,82824.0,0.00163987]
[1743294531386,0.44901283,82825.0,82824.0,0.00063987]
[1743294531769,0.44901283,82825.0,82824.0,0.00163987]
[1743294531964,0.44901283,82825.0,82824.0,0.00063987]
[1743294532196,0.3790626,82825.0,82824.0,0.00163987]
[1743294532400,0.3790626,82825.0,82824.0,0.00093242]
[1743294534066,0.36772035,82825.0,82824.0,0.00093242]
[1743294535222,0.3866567,82825.0,82824.0,0.00093242]
[1743294535820,0.36772035,82825.0,82824.0,0.00093242]
[1743294536200,0.34503441,82825.0,82824.0,0.00093242]
[1743294537927,0.34503441,82825.0,82824.0,0.00110102]
[1743294538765,0.36397082,82825.0,82824.0,0.00110102]
[1743294539309,0.45752621,82825.0,82824.0,0.00110102]
[1743294542552,0.34503441,82825.0,82824.0,0.00110102]
[1743294543184,0.36397077,82825.0,82824.0,0.00110102]
[1743294545160,0.35189777,82825.0,82824.0,0.00110102]
[1743294545361,0.05189777,82825.0,82824.0,0.00110102]
[1743294545617,0.04281649,82825.0,82824.0,0.08250102]
[1743294545843,0.04281649,82825.0,82824.0,0.32397602]
[1743294546426,0.04281649,82825.0,82824.0,0.08250102]
[1743294548715,0.02388013,82825.0,82824.0,0.08250102]
[1743294550216,0.08499394,82825.0,82824.0,0.08250102]
[1743294550419,0.02388013,82825.0,82824.0,0.08250102]
[1743294550830,0.02421733,82825.0,82824.0,0.09457402]
[1743294552424,0.0003372,82825.0,82824.0,0.09457402]
[1743294554054,0.0003372,82825.0,82824.0,0.14057402]
[1743294559789,0.0003372,82825.0,82824.0,0.01317402]
[1743294560403,0.0003372,82825.0,82824.0,0.00110102]
[1743294560632,0.05939965,82825.0,82824.0,0.00110102]
[1743294562562,0.07147265,82825.0,82824.0,0.00110102]
[1743294567444,0.0124102,82825.0,82824.0,0.00110102]
[1743294567603,0.0003372,82825.0,82824.0,0.0001686]
[1743294572538,0.0124102,82825.0,82824.0,0.0001686]
[1743294584089,0.0003372,82825.0,82824.0,0.0001686]
[1743294585433,0.0003372,82825.0,82824.0,0.2416436]
[1743294585587,0.0003372,82825.0,82824.0,0.0001686]
[1743294588070,0.0003372,82825.0,82824.0,0.0778686]
[1743294588236,0.0003372,82825.0,82824.0,0.1392416]
[1743294592917,0.05819155,82825.0,82824.0,0.0494686]
[1743294593145,0.0003372,82825.0,82824.0,0.0494686]
[1743294593345,0.0003372,82825.0,82824.0,0.0001686]
[1743294593494,0.3124102,82825.0,82824.0,0.0001686]
[1743294594860,0.012073,82825.0,82824.0,0.0001686]
[1743294596965,0.241464,82828.0,82824.0,0.0001686]
[1743294597170,0.0003372,82825.0,82824.0,0.0001686]
[1743294599895,0.0003372,82825.0,82824.0,0.2537166]
[1743294609937,0.3003372,82825.0,82824.0,0.0001686]
[1743294610138,0.35927191,82825.0,82824.0,0.0001686]
[1743294611812,0.46475562,82825.0,82824.0,0.0001686]
[1743294612016,0.54525562,82825.0,82824.0,0.0001686]
[1743294612746,0.3,82812.0,82807.0,0.241525]
[1743294613149,0.3,82812.0,82806.0,0.0124132]
[1743294613356,0.33476126,82812.0,82806.0,0.0003372]
[1743294614209,0.02268626,82812.0,82810.0,0.012075]
[1743294614648,0.03402901,82812.0,82810.0,0.012075]
[1743294615073,0.03402901,82812.0,82811.0,0.003]
[1743294615278,0.04610401,82812.0,82811.0,0.003]
[1743294615475,0.28761401,82812.0,82811.0,0.003]
[1743294616017,0.04610401,82812.0,82811.0,0.003]
[1743294616151,0.03402901,82812.0,82811.0,0.003]
[1743294617858,0.03402901,82812.0,82811.0,0.002]
[1743294618129,0.31176512,82812.0,82811.0,0.002]
[1743294618457,0.31176512,82812.0,82811.0,0.003]
[1743294619472,0.07025512,82812.0,82811.0,0.003]
[1743294619652,0.07025512,82812.0,82811.0,0.0021686]
[1743294620055,0.31176512,82812.0,82811.0,0.0021686]
[1743294620632,0.05818012,82812.0,82811.0,0.0021686]
[1743294622460,0.05818012,82812.0,82811.0,0.0031686]
[1743294623188,0.05818012,82812.0,82811.0,0.2567566]
[1743294623329,0.03402901,82812.0,82811.0,0.3040566]
[1743294623531,0.03402901,82812.0,82811.0,0.3810566]
[1743294625070,0.03402901,82812.0,82811.0,0.5179766]
[1743294625282,0.02268626,82812.0,82811.0,0.5179766]
[1743294627449,0.03401376,82812.0,82811.0,0.5179766]
[1743294628485,0.03401376,82812.0,82811.0,0.89638634]
[1743294629203,0.02268626,82812.0,82811.0,0.89638634]
[1743294631649,0.03401416,82812.0,82811.0,0.89638634]
[1743294632559,0.03401416,82812.0,82811.0,0.75946634]
[1743294632768,0.03401416,82812.0,82811.0,0.38157834]
[1743294633300,0.03401416,82812.0,82811.0,0.62309134]
[1743294633471,0.03401416,82812.0,82811.0,0.63516634]
[1743294634160,0.03401416,82812.0,82811.0,0.2567566]
[1743294635104,0.33401416,82812.0,82811.0,0.0031686]
[1743294635311,0.4038267,82812.0,82811.0,0.0031686]
[1743294636291,0.012076,82807.0,82806.0,0.0003372]
[1743294636909,0.553601,82807.0,82806.0,0.0003372]
[1743294637307,0.57628726,82807.0,82806.0,0.0003372]
[1743294638114,0.57628726,82807.0,82806.0,0.0013372]
[1743294638809,0.66558467,82807.0,82806.0,0.0013372]
[1743294640625,0.68824536,82807.0,82806.0,0.0013372]
[1743294643193,0.70718578,82807.0,82806.0,0.0013372]
[1743294643619,0.70718578,82807.0,82806.0,0.0003372]
[1743294645792,0.68824536,82807.0,82806.0,0.0003372]
[1743294646979,0.68924536,82807.0,82806.0,0.0003372]
[1743294648032,0.66658467,82807.0,82806.0,0.0003372]
[1743294651756,0.68552562,82807.0,82806.0,0.0003372]
[1743294652302,0.554601,82807.0,82806.0,0.0003372]
[1743294655807,0.57354197,82807.0,82806.0,0.0003372]
[1743294660419,0.31994097,82807.0,82806.0,0.0003372]
[1743294660620,0.33201697,82807.0,82806.0,0.0003372]
[1743294660989,0.313076,82807.0,82806.0,0.0003372]
[1743294661229,0.39998114,82807.0,82806.0,0.0003372]
[1743294662230,0.4226343,82807.0,82806.0,0.0003372]
[1743294664095,0.3,82793.0,82791.0,0.002337]
[1743294664492,0.541569,82792.0,82791.0,0.002337]
[1743294665295,0.58014589,82792.0,82791.0,0.002337]
[1743294665495,0.59222389,82792.0,82791.0,0.002337]
[1743294665737,0.60355896,82792.0,82791.0,0.002337]
[1743294667224,0.70688888,82792.0,82791.0,0.002337]
[1743294671332,0.73153067,82792.0,82791.0,0.002337]
[1743294673370,0.75047344,82792.0,82791.0,0.002337]
[1743294673858,0.62820075,82792.0,82791.0,0.002337]
[1743294674173,0.312078,82791.0,82786.0,0.047]
[1743294674379,0.3,82789.0,82786.0,0.047]
[1743294674786,0.02265316,82788.0,82786.0,0.047]
[1743294674986,0.3,82787.0,82786.0,0.047]
[1743294676354,0.32265316,82787.0,82786.0,0.047]
[1743294678165,0.02265316,82787.0,82786.0,0.047]
[1743294679971,0.02265316,82787.0,82786.0,0.0471686]
[1743294680546,0.02265316,82787.0,82786.0,0.0592476]
[1743294680752,0.02265316,82787.0,82786.0,0.1356476]
[1743294681970,0.02265316,82787.0,82786.0,0.1235686]
[1743294683283,0.02265316,82787.0,82786.0,0.1356476]
[1743294685677,0.02265316,82787.0,82786.0,0.2563223]
[1743294685897,0.02265316,82787.0,82786.0,0.1356476]
[1743294686881,1.6e-07,82787.0,82786.0,0.15182248]
[1743294687071,0.0796372,82831.0,82821.0,0.253557]
[1743294687072,0.012073,82829.0,82821.0,0.253557]
[1743294687270,0.0003372,82831.0,82825.0,0.012073]
[1743294687590,0.01647253,82831.0,82824.0,0.012073]
[1743294687790,0.012073,82825.0,82818.0,0.24149]
[1743294687986,0.012073,82825.0,82818.0,0.253564]
[1743294688214,0.012073,82829.0,82669.0,0.5]
[1743294688215,0.312074,82818.0,82811.0,0.012075]
[1743294688379,0.13502307,82821.0,82813.0,0.012075]
[1743294688582,0.3,82820.0,82813.0,0.012075]
[1743294689185,0.3,82820.0,82816.0,0.241499]
[1743294689574,0.3,82820.0,82816.0,0.253573]
[1743294689770,0.312074,82821.0,82815.0,0.012075]
[1743294691251,0.313074,82821.0,82815.0,0.012075]
[1743294691422,0.001,82820.0,82815.0,0.012075]
[1743294691824,0.313074,82821.0,82815.0,0.012075]
[1743294692037,0.0003372,82820.0,82815.0,0.012075]
[1743294692218,0.0003372,82820.0,82816.0,0.253573]
[1743294692807,0.0003372,82820.0,82816.0,0.012074]
[1743294692995,0.2549002,82820.0,82815.0,0.012075]
[1743294693166,0.2559002,82820.0,82815.0,0.012075]
[1743294694406,0.2549002,82820.0,82815.0,0.012075]
[1743294694567,0.2539002,82820.0,82815.0,0.012075]
[1743294695274,0.2549002,82820.0,82815.0,0.012075]
[1743294695639,0.2418262,82820.0,82815.0,0.253574]
[1743294695821,0.2428262,82820.0,82815.0,0.253574]
[1743294695958,0.2428262,82820.0,82815.0,0.012075]
[1743294696161,0.2549002,82820.0,82815.0,0.012075]
[1743294696749,0.241493,82818.0,82813.0,0.012075]
[1743294696905,0.3,82817.0,82813.0,0.012075]
[1743294697108,0.3,82817.0,82808.0,0.42298805]
[1743294697109,0.012075,82813.0,82808.0,0.18146705]
[1743294697315,0.312075,82809.0,82808.0,4.705e-05]
[1743294698509,0.312075,82809.0,82808.0,0.00204705]
[1743294698898,0.312075,82809.0,82808.0,0.00304705]
[1743294699486,0.312075,82809.0,82808.0,0.00204705]
[1743294699818,0.312075,82809.0,82808.0,0.00404705]
[1743294702041,0.3952079,82809.0,82808.0,0.00404705]
[1743294702251,0.4721079,82809.0,82808.0,0.00404705]
[1743294703561,0.51856859,82809.0,82808.0,0.00404705]
[1743294703984,0.51856859,82809.0,82808.0,0.00221555]
[1743294704183,0.51856859,82809.0,82808.0,0.00021555]
[1743294704587,0.51856859,82809.0,82808.0,0.00121555]
[1743294705414,0.52758641,82809.0,82808.0,0.00121555]
[1743294709410,0.36755351,82809.0,82808.0,0.00121555]
[1743294710225,0.38649468,82809.0,82808.0,0.00121555]
[1743294710455,0.36388294,82809.0,82808.0,0.00121555]
[1743294711890,0.34494177,82809.0,82808.0,0.00121555]
[1743294716599,0.02384895,82809.0,82808.0,0.00121555]
[1743294717498,0.02384895,82809.0,82808.0,0.01329155]
[1743294717759,0.02384895,82809.0,82808.0,0.25481355]
[1743294718083,0.02384895,82809.0,82808.0,0.00121555]
[1743294718856,0.02384895,82809.0,82808.0,0.24273755]
[1743294719697,0.02384895,82809.0,82808.0,0.00121555]
[1743294720522,0.02384895,82809.0,82808.0,0.24273755]
[1743294721211,0.04649605,82809.0,82808.0,0.24273755]
[1743294722038,0.02384895,82809.0,82808.0,0.24273755]
[1743294722572,0.02384895,82809.0,82808.0,0.25481355]
[1743294722979,0.300337,82815.0,82813.0,0.253582]
[1743294723162,0.300337,82815.0,82813.0,0.333382]
[1743294723560,0.000337,82815.0,82814.0,0.012075]
[1743294723785,0.000337,82815.0,82814.0,0.061775]
[1743294724422,0.002337,82815.0,82814.0,0.0497]
[1743294724646,0.000337,82815.0,82814.0,0.0497]
[1743294724830,0.241513,82811.0,82808.0,0.00021555]
[1743294725184,0.3,82813.0,82808.0,0.00021555]
[1743294725791,0.02265988,82812.0,82808.0,0.00021555]
[1743294726191,0.02265988,82812.0,82810.0,0.012075]
[1743294726392,0.02265988,82812.0,82811.0,0.253588]
[1743294726657,0.02265988,82812.0,82811.0,0.332088]
[1743294727200,0.02265988,82812.0,82811.0,0.331088]
[1743294727823,0.02365988,82812.0,82811.0,0.331088]
[1743294728255,0.02365988,82812.0,82811.0,0.46154535]
[1743294728628,0.02365988,82812.0,82811.0,0.376488]
[1743294729029,0.001,82812.0,82811.0,0.376488]
[1743294729228,0.000337,82815.0,82814.0,0.25358]
[1743294730140,0.000337,82815.0,82811.0,0.376488]
[1743294730346,0.000337,82815.0,82812.0,0.241508]
[1743294730752,0.000337,82815.0,82812.0,0.240508]
[1743294730977,0.000337,82815.0,82814.0,0.241505]
[1743294732130,0.001337,82815.0,82814.0,0.25358]
[1743294733472,0.001337,82815.0,82812.0,0.240508]
[1743294733828,0.000337,82815.0,82812.0,0.240508]
[1743294734117,0.000337,82815.0,82814.0,0.002]
[1743294734372,0.000337,82815.0,82814.0,0.013075]
[1743294734583,0.000337,82815.0,82814.0,0.012075]
[1743294735357,0.000337,82815.0,82814.0,0.013075]
[1743294737220,0.000337,82815.0,82814.0,0.014075]
[1743294737971,0.02297911,82815.0,82814.0,0.014075]
[1743294738579,0.02297911,82815.0,82814.0,0.092575]
[1743294738783,0.02297911,82815.0,82814.0,0.137975]
[1743294739726,0.02297911,82815.0,82814.0,0.136975]